Cogmind - Beta 11 @@@ ROGUE MODE // 2022.03.30 @ 13:03:34 Player: Happytimes Result: Self-destructed Performance ------------- Evolutions (1) 500 Regions Visited (3) 600 Robots Destroyed (7) 35 Value Destroyed (115) 115 Prototype IDs (2) 40 Alien Tech Used (0) 0 Bonus (11) 11 TOTAL SCORE: 1301 Bonus ------- Follower Combat Kills 25 Friendly Fire -14 Cogmind --------- Core Integrity 400/400 Matter 257/300 Energy 250/250 System Corruption 0% Temperature Cool (60) Movement Core (300) Ox5 Location -9/Materials Parts ------- > --- POWER (1) -------- Ion Engine > --- PROPULSION (3) --- (None) > --- UTILITY (3) ------ Small Storage Unit Sensor Array > --- WEAPON (2) ------- EM Pulse Gun Light Cannon > --- INVENTORY (8) ---- Heavy Ion Engine Wheel Compact Wheel Medium Storage Unit Trap Scanner Peak State ------------ > --- POWER ------------ Heavy Ion Engine > --- PROPULSION ------- Airjet Airjet > --- UTILITY ---------- Small Storage Unit Sensor Array > --- WEAPON ----------- EM Pulse Gun Light Cannon > --- INVENTORY -------- Wheel Compact Wheel Trap Scanner EM Pulse Gun [Rating: 13] Favorites ----------- Power Ion Engine Engine Ion Engine Propulsion Wheel Wheel Wheel Hover Unit Airjet Utility Small Storage Unit Device Sensor Array Storage Small Storage Unit Weapon EM Pulse Gun Energy Gun EM Pulse Gun Ballistic Gun Improved Assault Rifle Ballistic Cannon Light Cannon Build | -11 -10 -10 -9 ------- Run | Scr Mat Min Mat Slots Evolved 2 | . . . 2 Power . | . . . . Propulsion 1 | . . . 1 Utility 1 | . . . 1 Weapon . | . . . . Parts Attached 14 | 6 1 3 4 Power 3 | 1 . . 2 Engine 3 | 1 . . 2 Core . | . . . . Reactor . | . . . . Propulsion 4 | 2 . 2 . Treads . | . . . . Leg . | . . . . Wheel 2 | 2 . . . Hover 2 | . . 2 . Flight . | . . . . Utility 2 | 1 1 . . Device 1 | . 1 . . Storage 1 | 1 . . . Processor . | . . . . Hackware . | . . . . Protection . | . . . . Artifact . | . . . . Weapon 5 | 2 . 1 2 Energy Gun 3 | 2 . . 1 Energy Cannon . | . . . . Ballistic Gun 1 | . . . 1 Ballistic Cannon 1 | . . 1 . Launcher . | . . . . Special Weapon . | . . . . Impact Weapon . | . . . . Slashing Weapon . | . . . . Piercing Weapon . | . . . . Special Melee Weapon . | . . . . Unidentified Prototypes 2 | . . . 2 Parts Lost 2 | . . . 2 Power . | . . . . Propulsion 2 | . . . 2 Utility . | . . . . Weapon . | . . . . Highest Loss Streak 2 | . . . 2 To Critical Strikes . | . . . . Average Slot Usage (%) 84 | . 85 100 69 Engine 13 | . 14 14 9 Wheel 18 | . 28 15 . Hover 7 | . . 12 20 Device 5 | . . 14 11 Storage 13 | . 14 14 11 Energy Gun 20 | . 28 17 5 Ballistic Cannon 4 | . . 10 11 Naked Turns . | . . . . Heaviest Build 16 | 14 15 16 16 Greatest Support 26 | 26 26 26 16 Greatest Overweight (x) 1 | 1 . . 1 Average Overweight (x) . | . . . . Largest Inventory Capacity 8 | 8 8 8 8 Average Capacity 7 | 6 8 8 8 Most Carried 7 | 5 2 4 7 Average Carried 1 | 1 . 2 5 Final Capacity 8 | 8 8 8 8 Final Carried 5 | . 1 4 5 Class Distribution -------------------- 100% | Mutant Dominant Class ---------------- Mutant | -10/Materials Mutant | -10/Mines Mutant | -9/Materials Resources | -11 -10 -10 -9 ----------- Run | Scr Mat Min Mat Matter Collected 327 | 186 74 48 19 Remotely . | . . . . Salvage Created 243 | . 134 35 74 Parts 16 | . 8 2 6 Haulers Intercepted 2 | . 1 . 1 Recyclers Shooed . | . . . . Parts Field Recycled . | . . . . Retrieved Matter . | . . . . Parts Self-Destructed . | . . . . Prevented . | . . . . Kills | -11 -10 -10 -9 ------- Run | Scr Mat Min Mat Combat Hostiles Destroyed 2 | . 1 1 . Cannons 1 | . . 1 . Classes Destroyed 4 | . 3 . 1 Worker 1 | . . . 1 Hauler 2 | . 1 . 1 Watcher 2 | . 2 . . Grunt 2 | . 1 1 . Best Kill Streak 2 | . 2 1 2 Combat Bots Only 1 | . 1 1 . Max Kills in Single Turn 2 | . 1 1 2 Gunslinging . | . . . . Exploded . | . . . . Melee . | . . . . Uniques/NPCs Destroyed . | . . . . Combat | -11 -10 -10 -9 -------- Run | Scr Mat Min Mat Damage Taken 251 | . 44 35 172 Core 24 | . 12 12 . Absorbed by Shields . | . . . . Core Remaining (%) 95 | 100 . 90 . Volleys Fired 21 | . 11 2 8 Largest 2 | . 2 2 2 Hottest 80 | . 80 75 75 Shots Fired 42 | . 22 4 16 Gun 32 | . 22 2 8 Cannon 10 | . . 2 8 Launcher . | . . . . Special . | . . . . Kinetic 10 | . . 2 8 Thermal . | . . . . Explosive . | . . . . Electromagnetic 32 | . 22 2 8 Robot Hit Streak 9 | . 9 3 8 Robot Miss Streak 3 | . 3 1 2 Penetration Max . | . . . . Secondary Targets . | . . . . Shots Hit Robots 26 | . 13 3 10 Core Hits 7 | . 3 1 3 Critical Kills . | . . . . Critical Parts Destroyed . | . . . . Critical Strikes . | . . . . Melee Attacks . | . . . . Impact . | . . . . Slashing . | . . . . Piercing . | . . . . Sneak Attacks . | . . . . Combat Hostiles . | . . . . Follow-up Attacks . | . . . . Damage Inflicted 498 | . 264 58 176 Guns 292 | . 201 25 66 Cannons 143 | . . 33 110 Explosions 63 | . 63 . . Melee . | . . . . Ramming . | . . . . Kinetic 143 | . . 33 110 Thermal 63 | . 63 . . Explosive . | . . . . Electromagnetic 292 | . 201 25 66 Impact . | . . . . Slashing . | . . . . Piercing . | . . . . Highest Corruption . | . . . . Average Corruption . | . . . . Corruption Purged . | . . . . Corruption Blocked . | . . . . Overload Shots . | . . . . Overflow Damage . | . . . . Projectiles . | . . . . Explosions . | . . . . Melee . | . . . . Knockbacks 1 | . . . 1 Impact . | . . . . Kinetic 1 | . . . 1 Secondary . | . . . . Self-Inflicted Damage . | . . . . Shots . | . . . . Rammed . | . . . . Targets Rammed . | . . . . Kicked . | . . . . Crushed . | . . . . Highest Temperature 96 | . 96 46 93 Average Temperature 32 | . 30 22 39 Received Heat Transfer 102 | . 24 18 60 Siege Activations . | . . . . Robots Corrupted 1 | . 1 . . Combat Hostiles 1 | . 1 . . Parts Fried 1 | . 1 . . Impact Corruptions . | . . . . Robots Melted . | . . . . Combat Hostiles . | . . . . Parts Melted . | . . . . Heat Transferred 100 | . 100 . . Parts Sabotaged . | . . . . Parts Stolen . | . . . . Parts Stripped . | . . . . Power Chain Reactions 2 | . 2 . . Missiles Intercepted . | . . . . Alert | -11 -10 -10 -9 ------- Run | Scr Mat Min Mat Peak Influence 127 | . 127 84 68 Initial 49 | . . 49 32 Average 57 | . 72 59 42 Maximum Alert Level . | . . . . Low Security (%) 100 | 100 100 100 100 Level 1 . | . . . . Level 2 . | . . . . Level 3 . | . . . . Level 4 . | . . . . Level 5 . | . . . . High Security . | . . . . Max Security . | . . . . Squads Dispatched 2 | . 1 1 . Investigation 2 | . 1 1 . Extermination . | . . . . Reinforcement . | . . . . Assault . | . . . . Garrison . | . . . . Intercept . | . . . . Searches Triggered . | . . . . Construction Impeded . | . . . . Haulers Reinforced . | . . . . Active Scanning Responses . | . . . . Cargo Convoy Interrupts . | . . . . Stealth | -11 -10 -10 -9 --------- Run | Scr Mat Min Mat Distress Signals . | . . . . Communications Jammed . | . . . . Distress Signals . | . . . . Times Spotted 14 | . 7 5 2 Peak Tracking Total 9 | . 2 9 2 Tactical Retreats . | . . . . Traps | -11 -10 -10 -9 ------- Run | Scr Mat Min Mat Traps Triggered . | . . . . Indirectly . | . . . . Trap Hack Attempts . | . . . . Triggered . | . . . . Disarmed . | . . . . Reprogrammed . | . . . . Reused . | . . . . Traps Extracted . | . . . . Installed . | . . . . Triggered . | . . . . Machines | -11 -10 -10 -9 ---------- Run | Scr Mat Min Mat Machines Disabled 1 | . 1 . . Max in Single Turn 1 | . 1 . . Machines Sabotaged . | . . . . Garrisons Compromised . | . . . . Overloaded Fab Kills . | . . . . Hacking | -11 -10 -10 -9 --------- Run | Scr Mat Min Mat Machines Accessed 6 | . 5 1 . Terminals 5 | . 5 . . Fabricators . | . . . . Repair Stations . | . . . . Recycling Units . | . . . . Scanalyzers . | . . . . Garrison Access . | . . . . Total Hacks 15 | . 14 1 . Successful 7 | . 6 1 . Failed 8 | . 8 . . Catastrophic 1 | . 1 . . Database Lockouts . | . . . . Manual . | . . . . Terminals 14 | . 14 . . Fabricators . | . . . . Repair Stations . | . . . . Recycling Units . | . . . . Scanalyzers . | . . . . Garrison Access . | . . . . Terminal Hacks 7 | . 6 1 . Open Door 1 | . . 1 . Locate Traps 4 | . 4 . . Recall Investigation 1 | . 1 . . Zone Layout 1 | . 1 . . Fabricator Hacks . | . . . . Repair Station Hacks . | . . . . Recycling Unit Hacks . | . . . . Scanalyzer . | . . . . Garrison Access Hacks . | . . . . Unauthorized Hacks . | . . . . Terminals . | . . . . Fabricators . | . . . . Repair Stations . | . . . . Recycling Units . | . . . . Scanalyzers . | . . . . Garrison Access . | . . . . Data Cores Recovered . | . . . . Used . | . . . . Hacking Detections 4 | . 4 . . Full Trace Events 2 | . 2 . . Feedback Events . | . . . . Feedback Blocked . | . . . . Robot Schematics Acquired . | . . . . Robots Built . | . . . . Authchips . | . . . . Time . | . . . . Total Robot Build Rating . | . . . . Part Schematics Acquired . | . . . . Parts Built . | . . . . Authchips . | . . . . Time . | . . . . Total Part Build Rating . | . . . . Parts Repaired . | . . . . Time . | . . . . Parts Recycled . | . . . . Recycled Matter . | . . . . Retrieved Matter . | . . . . Retrieved Components . | . . . . Parts Scanalyzed . | . . . . Part Schematics Acquired . | . . . . Parts Damaged . | . . . . Bothacking | -11 -10 -10 -9 ------------ Run | Scr Mat Min Mat Used RIF Installer . | . . . . Robots Hacked . | . . . . Non-combat . | . . . . Combat . | . . . . Robot Hacks Applied . | . . . . Relay Couplers Released . | . . . . Fabnet Peak Effective % . | . . . . Robots Rewired . | . . . . Allies Hacked . | . . . . Hacks Repelled . | . . . . Allies | -11 -10 -10 -9 -------- Run | Scr Mat Min Mat Total Allies 3 | . . 3 . Largest Group 3 | . . 3 3 Highest-Rated Group 40 | . . 40 40 Highest-Rated Ally 16 | . . 16 16 Total Orders . | . . . . Ally Attacks 12 | . . 1 11 Total Damage 115 | . . 12 103 Kills 1 | . . . 1 Allies Corrupted . | . . . . Allies Melted . | . . . . Intel | -11 -10 -10 -9 ------- Run | Scr Mat Min Mat Robot Analysis Total . | . . . . Derelict Logs Recovered 1 | . . 1 . Drone Launches . | . . . . Drone Recoveries . | . . . . Exploration | -11 -10 -10 -9 ------------- Run | Scr Mat Min Mat Turns Passed 459 | 40 237 86 96 Spaces Moved 416 | 39 212 80 85 Core 21 | 21 . . . Treads . | . . . . Legs . | . . . . Wheels 275 | 18 212 45 . Hover 120 | . . 35 85 Flight . | . . . . Fastest Speed 50 | 50 90 56 56 Average Speed 78 | 73 90 75 57 Slowest Speed 120 | 100 90 90 120 Overloaded Moves . | . . . . Propulsion Burnouts . | . . . . Robots Hopped . | . . . . Cave-ins Triggered . | . . . . Exploration Rate (%) 24 | 4 43 35 14 Regions Visited 3 Branch Regions 1 Pre-discovered Areas . | . . . . Known Exits Taken . | . . . . Unknown Exits Taken 3 | 1 1 1 . Scrap Searched 1 | . . 1 . Spaces Dug . | . . . . Terrain Destroyed 9 | . 9 . . Melee . | . . . . Projectile . | . . . . AOE 9 | . 9 . . Terrain Rammed . | . . . . Walls Destroyed . | . . . . Machines Disabled . | . . . . Actions | -11 -10 -10 -9 --------- Run | Scr Mat Min Mat Total 502 | 49 236 99 118 Wait 36 | . 11 12 13 Move 413 | 38 211 79 85 Hop . | . . . . Pick Up 14 | 5 2 3 4 Fast Attach 1 | 1 . . . Attach 10 | 5 1 . 4 Detach 1 | . . . 1 Swap 3 | . . 3 . Drop 3 | . . . 3 Fire 21 | . 11 2 8 Melee . | . . . . Ram . | . . . . Kick . | . . . . Crush . | . . . . Escape Stasis . | . . . . Rewire . | . . . . Trap . | . . . . Miscellaneous . | . . . . Route ------- -11/Scrapyard -10/Materials (discovered 2 exits: [*Mat] / *Min) -10/Mines -9/Materials History --------- Turn | Location | Event 16 | -11/Scrapyard | Discovered new exit (range 16) 41 | -11/Scrapyard | Entered Materials 154 | -10/Materials | Discovered new exit (range 9) 273 | -10/Materials | Discovered new exit (range 5) 278 | -10/Materials | Entered Mines 280 | -10/Mines | Assisted by bots powering up and referring to "LRC-V3" 311 | -10/Mines | Build established: Mutant 311 | -10/Mines | Met a Derelict shopkeep closing up shop 343 | -10/Mines | Assembled infested the area 348 | -10/Mines | Learned Materials trap positions 348 | -10/Mines | Discovered new exit (range 10) 364 | -10/Mines | Entered Materials 364 | -9/Materials | Accompanied by 3 allies 364 | -9/Materials | Evolved 2 slots: Propulsion x1, Utility x1 365 | -9/Materials | Loaded intel: 17 trap records 460 | -9/Materials | Self-destructed Last Messages --------------- 00397_ Identified Imp. Assault Rifle. 00397_ R-06 Scavenger collects Sml. Matter Pod. 00398_ Dropped Imp. Assault Rifle. 00399_ Acquired 13 matter. 00401_ Acquired Med. Storage Unit. 00401_ R-06 Scavenger collects Imp. Assault Rifle. 00404_ Acquired Ion Engine. 00405_ R-06 Scavenger collects Faulty Imp. Assault Rifle. 00406_ Acquired 3 matter. 00412_ R-06 Scavenger inserts Lgt. Ion Engine into recycling unit. 00437_ K-01 Serf collects debris. 00448_ G-34 Mercenary knocked back. 00451_ K-01 Serf collects debris. 00456_ G-34 Mercenary destroyed. 00457_ Airjet destroyed. 00457_ K-01 Serf collects debris. 00459_ Acquired 3 matter. 00459_ K-01 Serf collects debris. 00460_ Airjet destroyed. 00460_ Destroyed Airjet. Map ----- +----------------------------------------------------+ | ??????????????????????????????????? | | ??????????????????????????????????? | | ??????????????????????????????????? | | ??????????????????????????????????? | | ??????????????????????????????????? | | ??????????????????????????????????? | | ??????????????????????????????????? | | ??????????????????????????????????? | | ??????????????????????????????????? | | ??????????????????????????????????? | | ??????????????????????? ??????????? | | ?????????????????????? ??????????? | | ????????????????????????#####?????? | | ??????????????????????? #?????? | | ?????????????????????? #?????? | | ???????????????####### #?????? | | ??????????????? #?????? | | ???????????????? #?????? | | ???????????????? #?????? | | ????????????????? %%#?????? | | ???????????????? """ """% #???? ? | | ?????????????"""u """ """ #??"" ? | | ????????? """ """ """ # """ # | | ????????? k + """ # | | ????????? l # # | | ????????? u @ #?????? | | ????????????#####k##### ##?????? | | ??????????????????????# #??????? | | ??????????????????????# g#??????? | | ??????????????????????# gg #??????? | | ??????????????????????# ######## | | ??????????????????????# # # | | ??????????????????????# # # | | ??????????????????????# # # | | ??????????????????????# # # | | ??????????????????????# # # | | ??????????????????????# # # | | ??????????????????????# # # | | ??????????????????????# + # | | ??????????????^???????# # # | | ????????????^^^???????# # # | | ???????????????^??????#### # # | | ???????????^?????????????# # # | | ?????????????????????????# # # | | ?????????????????????????# ######## | | ??????????????########???# #??????? | | ?????????????? #???# #??????? | | ?????????????? #???# #??????? | | ?????????????? #???# #??????? | | ????????????#""" #???# #??????? | +----------------------------------------------------+ Best States ------------- Heat Dissipation 28 Energy Generation 10 Energy Capacity 250 Matter Stores 300 Matter Capacity 300 Sight Range 16 Robot Scan Range 14 Terrain Scan Density 10 Evasion (%) 53 Item Schematics ----------------- None Robot Schematics ------------------ None Fabricated ------------ Nothing Alien Tech Used ----------------- None Achievements -------------- None Challenges ------------ None Game ------ Seed ThunderSwordDesublimator Manual? 0 Play Time 00:07:33 Cumulative 45.5 hours Start 2022.03.30 @ 12:57:58 End 2022.03.30 @ 13:03:34 Sessions 1 Manual Loads 0 Difficulty Rogue Special Mode None Game No. 137 Rogue 137 Adventurer 0 Explorer 0 Win Type - Total 0 Types 0/0/0/0/0/0/0/0/0 Lore% 32 Gallery% 46 Achievement% 37 Wizard Run 0 Options --------- ASCII 0 Keyboard 0 Movement Arrows Keybinds 0 Fullscreen 1 Font 18/SmallcapsGlow Map View 76x50 Tactical HUD 1 Map Filters NONE Filters NONE Steam 1 RUN: af66ddcc-223c-49b4-a87e-cfbe691fcc73